bitfinex/quotes_ETHUSD_20230111
["timestamp","ask_amount","ask_price","bid_price","bid_amount"]
[1673462512146,3.7577851,1337.6,1337.5,15.02726]
[1673462512360,6.86518646,1337.6,1337.5,7.55063]
[1673462512511,6.86518646,1337.6,1337.5,5.57209164]
[1673462512512,6.88118646,1337.6,1337.5,5.57209164]
[1673462512730,11.55889158,1337.6,1337.5,5.57209164]
[1673462512931,11.55889158,1337.6,1337.5,13.04872164]
[1673462512932,8.55889158,1337.6,1337.5,13.04872164]
[1673462514092,7.44011581,1337.6,1337.5,13.04872164]
[1673462514300,7.44011581,1337.6,1337.5,20.52535164]
[1673462515090,7.44011581,1337.6,1337.0,0.06]
[1673462515091,20.525,1337.5,1337.0,0.06]
[1673462515406,20.525,1337.5,1336.8,17.2841214]
[1673462515407,1.11946039,1337.3,1336.8,10.42166405]
[1673462515578,19.88019804,1337.3,1336.8,17.90192405]
[1673462515791,20.840561,1337.3,1336.8,16.24907938]
[1673462516007,2.0840561,1337.2,1336.8,8.76881938]
[1673462516346,3.4210561,1337.2,1336.8,8.76907938]
[1673462516573,4.54051649,1337.2,1336.8,8.76907938]
[1673462517107,3.76451649,1337.2,1336.8,16.24962938]
[1673462517401,2.0840561,1337.2,1336.8,22.62798865]
[1673462517609,2.0840561,1337.2,1336.8,25.38302405]
[1673462518212,2.0840561,1337.2,1336.8,23.73017938]
[1673462518790,30.77985,1337.3,1337.0,29.91724]
[1673462518791,21.975,1337.3,1337.0,29.91724]
[1673462518976,21.975,1337.3,1337.0,29.98324]
[1673462518977,21.4141,1337.3,1337.0,29.98324]
[1673462520711,21.4141,1337.3,1337.2,22.43493]
[1673462520957,0.032,1337.3,1337.2,22.50093]
[1673462521170,0.006,1337.3,1337.2,22.50093]
[1673462521383,3.52930053,1337.4,1337.2,22.50093]
[1673462521557,4.45240722,1337.4,1337.2,22.50093]
[1673462522183,3.52930053,1337.4,1337.2,22.50093]
[1673462522671,2.96840053,1337.4,1337.2,22.50093]
[1673462524503,5.96840053,1337.4,1337.2,22.50093]
[1673462524703,6.00040053,1337.4,1337.2,22.50093]
[1673462525372,3.00040053,1337.4,1337.2,22.50093]
[1673462525560,5.96840053,1337.4,1337.2,22.50093]
[1673462525770,6.00040053,1337.4,1337.2,22.50093]
[1673462526013,14.15846528,1337.4,1337.2,15.02262]
[1673462527352,17.95612592,1337.4,1337.2,0.066]
[1673462527555,7.47831,1337.2,1337.1,0.34564478]
[1673462527769,12.2571709,1337.2,1337.1,0.34564478]
[1673462528018,6.39304815,1337.2,1337.1,0.34564478]
[1673462528173,13.87135815,1337.2,1337.1,0.34564478]
[1673462528387,29.38897815,1337.2,1337.1,0.34564478]
[1673462528870,29.38897815,1337.2,1336.8,0.12053865]
[1673462529038,4.341,1337.1,1336.8,0.12053865]
[1673462529222,0.4341,1337.0,1336.8,0.12053865]
[1673462530521,0.4341,1337.0,1336.8,15.08141865]
[1673462530719,4.373,1337.1,1336.8,7.66686865]
[1673462530900,4.341,1337.1,1336.8,7.66686865]
[1673462531113,19.29874,1337.1,1336.8,0.18653865]
[1673462531446,19.33074,1337.1,1336.8,7.60107865]
[1673462531663,19.33074,1337.1,1336.8,0.18653865]
[1673462531986,1.933074,1337.0,1336.8,0.12053865]
[1673462532431,1.933074,1337.0,1336.8,7.60100865]
[1673462532739,9.412554,1337.0,1336.8,0.18653865]
[1673462533049,1.965074,1337.0,1336.8,0.12053865]
[1673462533261,1.933074,1337.0,1336.8,15.08128865]
[1673462533422,1.933074,1337.0,1336.8,15.14728865]
[1673462533886,1.933074,1337.0,1336.8,7.66676865]
[1673462534951,19.33106,1337.1,1336.8,22.62786865]
[1673462534952,3.032,1337.1,1336.8,22.62786865]
[1673462535103,21.9442,1337.2,1336.8,23.96886865]
[1673462535315,21.9442,1337.2,1336.8,0.18653865]
[1673462535569,29.98351,1337.2,1336.8,0.12053865]
[1673462535740,2.998351,1337.1,1336.8,0.12053865]
[1673462535951,2.998351,1337.1,1336.8,15.08163865]
[1673462536169,29.42251,1337.2,1336.8,22.62818865]
[1673462536170,21.9442,1337.2,1336.8,22.62818865]
[1673462537370,0.032,1337.2,1337.0,3.0]
[1673462537538,3.52930053,1337.4,1337.1,23.77761]
[1673462537539,2.96840053,1337.4,1337.1,23.77761]
[1673462537747,2.96840053,1337.4,1337.1,23.54361]
[1673462537948,2.96840053,1337.4,1337.1,27.34127064]
[1673462538154,2.96840053,1337.4,1337.2,7.02766064]
[1673462538370,2.96840053,1337.4,1337.3,17.4555]
[1673462538691,2.96840053,1337.4,1337.3,15.0215]
[1673462538916,2.96840053,1337.4,1337.3,7.54375]
[1673462539142,2.96840053,1337.4,1337.3,15.0215]
[1673462539460,2.96840053,1337.4,1337.3,0.066]
[1673462539620,2.96840053,1337.4,1337.2,25.49992]
[1673462539833,2.96840053,1337.4,1337.3,7.47775]
[1673462540087,2.96840053,1337.4,1337.3,7.54375]
[1673462540465,2.96840053,1337.4,1337.3,15.0215]
[1673462540675,2.96840053,1337.4,1337.3,7.54375]
[1673462541123,2.96840053,1337.4,1337.3,0.066]
[1673462541331,2.96840053,1337.4,1337.3,7.47775]
[1673462541563,2.96840053,1337.4,1337.3,0.066]
[1673462541730,2.96840053,1337.4,1337.2,25.49986]
[1673462542695,2.96840053,1337.4,1337.2,3.066]
[1673462542910,2.96840053,1337.4,1337.2,25.43492]
[1673462543096,2.96840053,1337.4,1337.2,25.50092]
[1673462544927,2.96840053,1337.4,1337.2,18.02261]
[1673462545668,2.96840053,1337.4,1337.2,25.50092]
[1673462546051,3.51415022,1337.4,1337.2,25.50092]
[1673462546456,3.51415022,1337.4,1337.2,18.02261]
[1673462546687,3.51415022,1337.4,1337.2,0.066]
[1673462546688,1.331,1337.3,1337.2,0.066]
[1673462546912,1.331,1337.3,1336.8,2.87390073]
[1673462546913,35.88160962,1337.3,1336.8,0.12053865]
[1673462547123,7.47892,1337.1,1336.8,0.12053865]
[1673462547452,0.032,1337.1,1336.8,7.60108865]
[1673462547818,10.4789,1337.1,1336.8,0.18653865]
[1673462547952,33.0715,1337.1,1336.8,0.12053865]
[1673462549051,33.0715,1337.1,1336.8,3.12053865]
[1673462549214,3.30715,1337.0,1336.8,10.60107865]
[1673462549426,25.74545,1337.0,1336.8,0.18653865]
[1673462549686,18.29801,1337.0,1336.8,0.12053865]
[1673462550073,3.33915,1337.0,1336.8,0.12053865]
[1673462550323,18.26602,1337.0,1336.8,0.12053865]
[1673462550540,1.826602,1336.9,1336.8,0.12053865]
[1673462550846,3.33915,1337.0,1336.8,15.08163865]
[1673462551001,3.30715,1337.0,1336.8,22.62818865]
[1673462551212,3.30715,1337.0,1336.8,15.14763865]
[1673462551427,3.30715,1337.0,1336.8,0.18653865]
[1673462551633,18.26642,1337.0,1336.8,0.12053865]
[1673462551895,18.29842,1337.0,1336.8,0.12053865]
[1673462552068,1.829842,1336.9,1336.8,0.12053865]
[1673462552284,3.33915,1337.0,1336.8,7.60108865]
[1673462552509,3.33915,1337.0,1336.8,0.18653865]
[1673462552510,3.30715,1337.0,1336.8,0.18653865]
[1673462552719,10.7866,1337.0,1336.8,0.12053865]
[1673462552931,10.81879,1337.0,1336.8,0.12053865]
[1673462553269,3.33915,1337.0,1336.8,0.12053865]
[1673462553441,2.972915,1336.9,1336.8,0.12053865]
[1673462553646,2.639,1336.9,1336.8,0.12053865]
[1673462556174,5.639,1336.9,1336.8,0.12053865]
[1673462556522,5.671,1336.9,1336.8,0.12053865]
[1673462556714,21.96198,1336.9,1336.8,0.12053865]
[1673462556949,32.41392622,1336.9,1336.8,0.12053865]
[1673462557252,23.95028335,1336.9,1336.8,0.12053865]
[1673462557878,38.91026335,1336.9,1336.8,0.12053865]
[1673462564195,40.25126335,1336.9,1336.8,0.12053865]
[1673462564568,45.03847725,1336.9,1336.8,0.12053865]
[1673462564795,22.44333,1336.7,1336.6,0.11782116]
[1673462564990,30.15432364,1336.7,1336.6,0.11782116]
[1673462566778,22.67321364,1336.7,1336.6,0.11782116]
[1673462566989,30.15432364,1336.7,1336.4,0.066]
[1673462567199,30.15432364,1336.7,1336.3,25.64575455]
[1673462567540,30.15432364,1336.7,1336.3,19.26581935]
[1673462567753,3.01543236,1336.6,1336.3,19.26581935]
[1673462568084,3.01543236,1336.6,1336.3,10.67957455]
[1673462568085,17.97899236,1336.6,1336.3,10.67957455]
[1673462568240,25.49277236,1336.6,1336.3,3.19656455]
[1673462568456,25.49277236,1336.6,1336.3,3.13056455]
[1673462569108,10.52921236,1336.6,1336.3,10.61371455]
[1673462569308,10.52921236,1336.6,1336.3,25.64632455]
[1673462569309,1.05292124,1336.5,1336.3,25.64632455]
[1673462569502,6.04743236,1336.6,1336.3,25.64632455]
[1673462569724,3.04743236,1336.6,1336.3,25.64632455]
[1673462569937,3.01543236,1336.6,1336.3,25.64632455]
[1673462571522,10.71099364,1336.7,1336.3,25.64632455]
[1673462571927,1.341,1336.5,1336.3,0.19656455]
[1673462572140,7.03696064,1336.4,1336.3,0.13056455]
[1673462572385,7.03696064,1336.4,1336.3,7.61390455]
[1673462572386,1.29699606,1336.4,1336.3,7.61390455]
[1673462572665,1.29699606,1336.4,1336.3,0.19656455]
[1673462572666,3.2003,1336.4,1336.3,0.19656455]
[1673462572910,3.2003,1336.4,1336.3,0.13056455]
[1673462573238,0.5613,1336.4,1336.3,7.61390455]
[1673462573451,20.6446,1336.5,1336.3,15.16324455]
[1673462573452,21.2059,1336.5,1336.3,15.16324455]
[1673462573768,21.2059,1336.5,1336.3,7.67990455]
[1673462575229,21.2059,1336.5,1336.3,15.16324455]
[1673462575633,51.46973364,1336.5,1336.3,0.19656455]
[1673462575845,29.02280364,1336.5,1336.2,7.65719002]
[1673462576065,29.02280364,1336.5,1336.2,15.19940457]
[1673462576243,29.02280364,1336.5,1336.2,22.68319457]
[1673462576916,36.50505364,1336.5,1336.2,15.19940457]
[1673462577131,3.65050536,1336.4,1336.2,7.71575457]
[1673462577499,29.02280364,1336.5,1336.2,22.68355457]
[1673462578386,21.2059,1336.5,1336.2,15.19965457]
[1673462578770,21.2059,1336.5,1336.2,22.68355457]
[1673462579119,21.2059,1336.5,1336.2,15.19965457]
[1673462579494,21.2059,1336.5,1336.2,22.68355457]
[1673462580280,21.2059,1336.5,1336.2,0.23216457]
[1673462580455,21.2059,1336.5,1336.2,15.14085002]
[1673462580667,0.032,1336.5,1336.3,1.68335521]
[1673462581029,14.22909634,1336.9,1336.4,22.44834]
[1673462581030,21.0596,1336.8,1336.4,22.44834]
[1673462581196,20.5644,1336.8,1336.4,27.27481613]
[1673462581546,20.5644,1336.8,1336.4,22.50690455]
[1673462583336,3.0,1336.7,1336.4,7.54134455]
[1673462583705,3.0,1336.7,1336.5,0.33417338]
[1673462583918,20.5644,1336.8,1336.5,15.29856338]
[1673462584170,20.5644,1336.8,1336.5,15.35712793]
[1673462584386,3.0,1336.7,1336.5,15.35512793]
[1673462584705,3.0,1336.7,1336.5,15.35712793]
[1673462585209,3.0,1336.7,1336.5,0.39273793]
[1673462585210,12.83755,1336.7,1336.5,0.39273793]
[1673462585424,20.38473,1336.7,1336.5,0.33417338]
[1673462585593,1.341,1336.6,1336.5,0.33417338]
[1673462585803,8.82266,1336.6,1336.5,0.33417338]
[1673462586053,12.24527806,1336.6,1336.5,0.33417338]
[1673462586379,16.58127806,1336.6,1336.5,0.33417338]
[1673462586696,16.58127806,1336.6,1336.3,0.05856455]
[1673462586915,3.0,1336.5,1336.2,8.81877937]
[1673462587103,3.0,1336.5,1336.2,10.47162404]
[1673462587279,3.0,1336.5,1336.2,8.81877937]
[1673462587280,5.57219381,1336.5,1336.2,8.81877937]
[1673462587496,5.63819381,1336.5,1336.2,8.81877937]
[1673462588153,13.12043381,1336.5,1336.2,1.33532937]
[1673462588383,1.333,1336.4,1336.2,0.17360002]
[1673462588573,7.48334,1336.3,1336.2,0.17360002]
[1673462588807,0.066,1336.3,1336.2,7.65750002]
[1673462589134,1.333,1336.4,1336.2,0.23216457]
[1673462589299,5.21788938,1336.4,1336.2,7.65750002]
[1673462589509,5.28388938,1336.4,1336.2,7.71606457]
[1673462589974,5.28388938,1336.4,1336.2,23.78702937]
[1673462590294,1.399,1336.4,1336.2,16.30312937]
[1673462590612,1.333,1336.4,1336.2,16.30312937]
[1673462590771,38.84389381,1336.5,1336.2,23.78702937]
[1673462590977,42.64155445,1336.5,1336.2,1.33532937]
[1673462591243,42.64155445,1336.5,1336.2,0.17360002]
[1673462591244,5.13466064,1336.4,1336.2,0.17360002]
[1673462591559,0.51346606,1336.3,1336.1,8.71811935]
[1673462591715,1.403,1336.4,1336.1,8.71811935]
[1673462591716,1.337,1336.4,1336.1,8.7766839]
[1673462592136,59.96331381,1336.5,1336.2,0.00800579]
[1673462592137,35.85389381,1336.5,1336.2,0.00800579]
[1673462592394,35.85389381,1336.5,1336.2,8.59479059]
[1673462592569,35.85389381,1336.5,1336.2,16.13725514]
[1673462592786,24.1057,1336.5,1336.2,8.65335514]
[1673462593061,0.6273,1336.5,1336.2,29.07509043]
[1673462593206,65.17942083,1336.8,1336.3,1.1031648]
[1673462593543,65.17942083,1336.8,1336.4,7.4825]
[1673462593544,34.47942083,1336.8,1336.4,7.4825]
[1673462593731,3.0,1336.7,1336.4,0.05856455]
[1673462593941,0.3,1336.6,1336.4,0.04256455]
[1673462594172,0.3,1336.6,1336.3,1.16172935]
[1673462594351,2.2022,1336.6,1336.3,1.1031648]
[1673462594806,1.641,1336.6,1336.3,16.0696348]
[1673462594985,1.341,1336.6,1336.3,23.61153935]
[1673462595190,1.9612,1336.7,1336.3,23.61153935]
[1673462595435,1.8952,1336.7,1336.3,32.75915919]
[1673462595672,1.334,1336.7,1336.3,32.75915919]
[1673462595881,1.334,1336.7,1336.3,32.89836405]
[1673462596032,1.334,1336.7,1336.4,1.1031648]
[1673462596241,1.334,1336.7,1336.5,14.96444]
[1673462596452,1.334,1336.7,1336.5,15.02300455]
[1673462596707,1.334,1336.7,1336.5,22.50522455]
[1673462597201,1.334,1336.7,1336.5,15.02300455]
[1673462597605,4.334,1336.7,1336.5,15.02300455]
[1673462598287,34.47942083,1336.8,1336.5,22.50522455]
[1673462598666,33.3613,1336.8,1336.5,22.50522455]
[1673462598891,34.48109615,1336.8,1336.5,22.50522455]
[1673462599195,32.0283,1336.8,1336.5,22.50522455]
[1673462599419,0.066,1336.8,1336.5,23.60838935]
[1673462599619,0.5611,1336.9,1336.5,25.264664]
[1673462599830,0.5611,1336.9,1336.5,29.06232464]
[1673462600719,31.88579615,1337.0,1336.7,7.48099]
[1673462600869,0.066,1337.0,1336.7,22.50153455]
[1673462601083,2.79930309,1337.1,1336.7,22.50153455]
[1673462601286,5.98895823,1337.1,1336.7,22.50153455]
[1673462601497,3.0,1337.0,1336.7,22.50153455]
[1673462602497,5.46079615,1337.0,1336.7,0.05856455]
[1673462602663,5.52679615,1337.0,1336.7,22.44324]
[1673462602866,4.407,1337.0,1336.7,22.50180455]
[1673462603078,5.46079615,1337.0,1336.7,22.50180455]
[1673462603298,5.52679615,1337.0,1336.7,22.50180455]
[1673462603549,5.68567104,1337.0,1336.7,22.50180455]
[1673462603926,6.80546719,1337.0,1336.7,22.50180455]
[1673462604351,23.44459413,1337.0,1336.7,0.05856455]
[1673462604561,23.44459413,1337.0,1336.5,11.7520648]
[1673462604562,14.96132,1336.8,1336.5,3.05856455]
[1673462604790,0.066,1336.8,1336.5,7.48204]
[1673462604987,4.99442068,1336.8,1336.5,15.02264455]
[1673462605442,4.99442068,1336.8,1336.5,0.05856455]
[1673462605443,19.95571068,1336.8,1336.5,0.05856455]
[1673462605610,3.0,1336.7,1336.4,11.19942935]
[1673462605975,3.0,1336.7,1336.4,16.12711935]
[1673462606293,4.334,1336.7,1336.4,16.12711935]
[1673462606503,0.4334,1336.6,1336.4,1.16172935]
[1673462606693,0.4334,1336.6,1336.4,16.0687248]
[1673462606914,1.4,1336.7,1336.4,25.26624338]
[1673462607084,1.334,1336.7,1336.4,25.45998375]
[1673462607447,1.334,1336.7,1336.4,25.26624338]
[1673462607853,3.40142068,1336.8,1336.4,25.26624338]
[1673462608029,10.698,1336.9,1336.6,29.92664]
[1673462608238,9.361,1336.9,1336.6,29.98520455]
[1673462610810,9.361,1336.9,1336.6,22.50354455]
[1673462611032,3.0,1336.8,1336.6,7.54015455]
[1673462611180,3.0,1336.8,1336.6,22.50348455]
[1673462611660,13.702,1336.9,1336.6,22.50348455]
[1673462611965,4.3702,1336.8,1336.6,22.50348455]
[1673462612570,1.3722,1336.8,1336.6,22.50148455]
[1673462612895,1.3702,1336.8,1336.6,22.50348455]
[1673462614334,13.702,1336.9,1336.6,22.50348455]
[1673462615120,3.0,1336.8,1336.6,22.50348455]
[1673462616221,2.99628401,1336.8,1336.6,22.50348455]
[1673462616594,2.99628401,1336.8,1336.6,7.54016455]
[1673462617032,2.99628401,1336.8,1336.6,15.02182455]
[1673462617273,1.6756284,1336.7,1336.6,15.02182455]
[1673462617488,1.376,1336.7,1336.6,15.02182455]
[1673462617963,1.376,1336.7,1336.6,7.54016455]
[1673462618176,1.376,1336.7,1336.6,15.02188455]
[1673462618429,4.40328401,1336.8,1336.6,7.54022455]
[1673462618646,4.33728401,1336.8,1336.6,15.02188455]
[1673462618965,6.00711241,1336.8,1336.6,22.50354455]
[1673462619279,3.0768284,1336.8,1336.6,22.50354455]
[1673462619490,12.295,1336.9,1336.6,22.50354455]
[1673462619491,10.699,1336.9,1336.6,22.50354455]
[1673462620061,13.699,1336.9,1336.6,22.50354455]
[1673462621352,9.361,1336.9,1336.6,22.50354455]
[1673462621564,12.361,1336.9,1336.6,22.50354455]
[1673462621788,12.361,1336.9,1336.6,23.60670935]
[1673462623218,9.361,1336.9,1336.6,22.50354455]
[1673462623480,12.361,1336.9,1336.6,22.50354455]
[1673462623690,9.361,1336.9,1336.6,22.50354455]
[1673462624004,9.361,1336.9,1336.6,27.94280702]
[1673462624005,0.066,1336.9,1336.6,27.94280702]
[1673462624222,0.066,1337.0,1336.8,29.9222]
[1673462624375,9.4711,1337.1,1336.8,29.98076455]
[1673462624376,9.5371,1337.1,1336.8,29.98076455]
[1673462626276,12.5371,1337.1,1336.8,22.50021455]
[1673462626516,13.8781,1337.1,1336.8,22.50021455]
[1673462627210,13.8781,1337.1,1336.8,0.05856455]
[1673462627211,3.0,1337.0,1336.8,0.05856455]
[1673462627422,3.0,1337.0,1336.7,3.19319487]
[1673462627423,21.84061661,1337.0,1336.7,3.0]
[1673462627741,14.42710661,1337.0,1336.7,10.48101]
[1673462628100,6.94767661,1337.0,1336.7,25.50179455]
[1673462628630,4.4,1337.0,1336.7,25.50179455]
[1673462628780,4.334,1337.0,1336.7,25.69519756]
[1673462629154,10.8781,1337.1,1336.7,25.69519756]
[1673462629880,13.8781,1337.1,1336.7,25.69519756]
[1673462630095,10.8781,1337.1,1336.7,25.69519756]
[1673462630255,3.0,1337.0,1336.7,3.25196756]
[1673462630462,3.0,1337.0,1336.7,25.44301]
[1673462630708,3.0,1337.0,1336.7,25.69497756]
[1673462634654,26.14871646,1337.1,1336.7,25.69497756]
[1673462634655,18.66980646,1337.1,1336.7,25.69497756]
[1673462634813,21.2515448,1337.1,1336.7,26.79814236]
[1673462635019,5.12515448,1337.0,1336.7,26.79814236]
[1673462635236,3.066,1337.0,1336.7,26.79814236]
[1673462635574,3.0,1337.0,1336.7,26.79814236]
[1673462636494,18.66980646,1337.1,1336.7,26.79814236]
[1673462637228,3.0,1337.0,1336.7,26.79814236]
[1673462638939,2.99761267,1337.0,1336.7,26.79814236]
[1673462643657,11.99789615,1337.1,1336.7,26.79814236]
[1673462643868,13.65689615,1337.1,1336.7,26.79814236]
[1673462644547,3.0,1337.0,1336.7,26.79814236]
[1673462646579,10.65689615,1337.1,1336.7,32.25197703]
[1673462646835,10.65689615,1337.1,1336.8,1.1031648]
[1673462647042,10.65689615,1337.1,1336.7,31.14881223]
[1673462647043,3.0,1337.0,1336.7,32.25197703]
[1673462647575,3.0,1337.0,1336.7,28.45431639]
[1673462648262,3.0,1337.0,1336.7,26.79814236]
[1673462648725,3.0,1337.0,1336.7,28.45431639]
[1673462649258,3.0,1337.0,1336.7,26.79814236]
[1673462650168,5.09207939,1337.0,1336.7,19.31703236]
[1673462650396,6.27787554,1337.0,1336.7,26.60473935]
[1673462650612,1.18579615,1337.0,1336.7,19.31703236]
[1673462650938,13.65689615,1337.1,1336.7,28.45431639]
[1673462651516,3.0,1337.0,1336.7,28.45431639]
[1673462652359,10.65689615,1337.1,1336.7,28.45431639]
[1673462652729,9.5371,1337.1,1336.9,22.43997]
[1673462652938,0.066,1337.1,1336.9,22.49853455]
[1673462653106,22.18649615,1337.2,1336.9,22.49853455]
[1673462653529,22.18649615,1337.2,1336.9,22.50653614]
[1673462654780,22.18649615,1337.2,1336.9,23.60970094]
[1673462655775,22.18649615,1337.2,1336.9,22.50653614]
[1673462656894,22.18649615,1337.2,1336.9,23.60970094]
[1673462657165,21.0667,1337.2,1336.9,23.60970094]
[1673462657374,21.0667,1337.2,1336.9,29.25693862]
[1673462657375,0.066,1337.2,1336.9,29.25693862]
[1673462657566,10.36039615,1337.3,1336.9,34.94207539]
[1673462657782,10.36039615,1337.3,1336.9,33.28511106]
[1673462658001,10.36039615,1337.3,1336.9,28.93576459]
[1673462658485,10.36039615,1337.3,1337.1,22.43661]
[1673462658694,1.18579615,1337.3,1337.1,22.49517455]
[1673462658953,1.11979615,1337.3,1337.1,15.01630455]
[1673462659164,2.97503561,1337.3,1337.1,22.49517455]
[1673462659478,34.04231391,1337.4,1337.1,22.49517455]
[1673462659638,31.45884801,1337.4,1337.1,22.49517455]
[1673462661050,31.45884801,1337.4,1337.1,22.49224741]
[1673462661239,31.45884801,1337.4,1337.1,15.01337741]
[1673462661422,31.45884801,1337.4,1337.1,22.49224741]
[1673462661423,33.90983785,1337.4,1337.1,22.49224741]
[1673462661627,31.45884801,1337.4,1337.1,22.49224741]
[1673462661951,1.85529196,1337.3,1337.1,7.53450741]
[1673462662196,4.85529196,1337.3,1337.1,15.01337741]
[1673462662371,41.73667122,1337.4,1337.1,15.01337741]
[1673462662575,6.02896332,1337.3,1337.1,15.01337741]
[1673462662787,4.23966712,1337.3,1337.1,15.01337741]
[1673462663041,4.17366712,1337.3,1337.1,15.01337741]
[1673462663214,4.17366712,1337.3,1337.1,22.49224741]
[1673462663676,4.17566712,1337.3,1337.1,22.49024741]
[1673462663886,4.17366712,1337.3,1337.1,22.49224741]
[1673462664413,4.17366712,1337.3,1337.1,0.05856455]
[1673462664650,4.17366712,1337.3,1337.1,14.95758]
[1673462664821,7.17366712,1337.3,1337.1,0.05856455]
[1673462664998,14.71742712,1337.3,1337.0,15.01671455]
[1673462665202,7.23966712,1337.3,1337.0,15.01671455]
[1673462665432,7.23966712,1337.3,1337.0,22.49614455]
[1673462666924,9.68990901,1337.3,1337.0,22.49614455]
[1673462667103,4.23966712,1337.3,1337.0,22.49614455]
[1673462667321,4.17366712,1337.3,1337.0,22.49614455]
[1673462667730,7.17366712,1337.3,1337.0,22.49614455]
[1673462668049,4.23966712,1337.3,1337.0,22.49614455]
[1673462668270,4.17366712,1337.3,1337.0,22.49614455]
[1673462669515,5.29275101,1337.3,1337.0,22.49614455]
[1673462669884,5.35875101,1337.3,1337.0,22.49614455]
[1673462670779,15.83656101,1337.3,1337.0,22.49614455]
[1673462670987,10.80918342,1337.3,1337.0,22.49614455]
[1673462672074,7.80918342,1337.3,1337.0,22.49614455]
[1673462672294,5.35875101,1337.3,1337.0,22.49614455]
[1673462672461,1.18508389,1337.3,1337.0,22.49614455]
[1673462672673,1.11908389,1337.3,1337.0,22.49614455]
[1673462672885,2.97439362,1337.3,1337.0,22.49614455]
[1673462674188,1.11908389,1337.3,1337.0,22.49614455]
[1673462674709,2.97436512,1337.3,1337.0,22.49614455]
[1673462675093,1.11908389,1337.3,1337.0,22.49614455]
[1673462676507,33.91207922,1337.4,1337.0,22.49614455]
[1673462676665,31.46136858,1337.4,1337.0,22.49614455]
[1673462677669,31.46136858,1337.4,1337.0,23.59930935]
[1673462677824,31.46136858,1337.4,1337.0,22.49614455]
[1673462678035,31.46136858,1337.4,1337.0,23.59930935]
[1673462679249,31.46136858,1337.4,1337.0,22.49614455]
[1673462680032,31.46136858,1337.4,1337.0,27.63380519]
[1673462680285,30.34228469,1337.4,1337.1,1.571]
[1673462680600,30.34228469,1337.4,1337.2,29.91324]
[1673462680601,0.14408469,1337.4,1337.2,29.91324]
[1673462680820,0.14408469,1337.4,1337.2,29.97180455]
[1673462680821,0.07808469,1337.4,1337.2,29.97180455]
[1673462684863,0.07561448,1337.4,1337.2,29.97180455]
[1673462685073,0.07561448,1337.4,1337.3,5.13766064]
[1673462685333,0.07561448,1337.4,1337.3,27.86047519]
[1673462685551,0.07561448,1337.4,1337.3,27.85847519]
[1673462685720,0.07561448,1337.4,1337.3,31.63916441]
[1673462687703,4.48e-06,1337.4,1337.3,37.70131299]
[1673462687920,4.48e-06,1337.4,1337.3,38.24276901]
[1673462688124,4.48e-06,1337.4,1337.3,39.34593381]
[1673462688620,5.73e-06,1337.5,1337.4,3.0]
[1673462688748,30.85161486,1337.7,1337.4,39.80405922]
[1673462688749,0.15161486,1337.7,1337.4,39.80405922]
[1673462688967,0.08561486,1337.7,1337.6,29.90428]
[1673462689176,0.08561486,1337.7,1337.6,36.70194064]
[1673462689388,0.08561486,1337.7,1337.6,38.33150519]
[1673462690958,1.46161486,1337.7,1337.6,3.05856455]
[1673462691164,1.46161486,1337.7,1337.6,7.47607]
[1673462691165,0.23954528,1337.7,1337.6,7.47607]
[1673462691414,0.08561486,1337.7,1337.6,7.53463455]
[1673462692759,0.08561486,1337.7,1337.6,22.48677455]
[1673462693376,0.08561486,1337.7,1337.6,22.71477455]
[1673462693585,0.08561486,1337.7,1337.6,22.71677455]
[1673462701607,0.08561486,1337.7,1337.6,29.51443519]
[1673462702242,0.08561486,1337.7,1337.6,30.85543519]
[1673462703767,0.08561486,1337.7,1337.6,29.51443519]
[1673462708980,0.08561486,1337.7,1337.6,29.51098445]
[1673462715319,1.46161486,1337.7,1337.6,25.71332381]
[1673462715486,0.08561486,1337.7,1337.6,25.48332381]
[1673462716114,0.08561486,1337.7,1337.6,29.28098445]
[1673462716956,0.08561486,1337.7,1337.6,29.51098445]
[1673462719598,0.08561486,1337.7,1337.6,30.08609581]
[1673462720049,0.08561486,1337.7,1337.6,29.51098445]
[1673462722142,0.08561486,1337.7,1337.6,37.56248167]
[1673462723337,0.08561486,1337.7,1337.6,38.66564647]
[1673462724467,4.86e-06,1337.7,1337.6,38.66564647]
[1673462725279,4.86e-06,1337.7,1337.6,37.56248167]
[1673462725703,4.86e-06,1337.7,1337.6,38.66564647]
[1673462726537,4.86e-06,1337.7,1337.6,37.56248167]
[1673462727640,4.86e-06,1337.7,1337.6,38.66564647]
[1673462731531,4.86e-06,1337.7,1337.6,37.56248167]
[1673462732993,4.86e-06,1337.7,1337.6,38.66564647]
[1673462735516,4.86e-06,1337.7,1337.6,40.3218205]
[1673462735943,0.07768933,1337.8,1337.7,22.42852514]
[1673462736149,0.07768933,1337.8,1337.7,31.19178689]
[1673462736551,0.07768933,1337.8,1337.7,30.09017755]
[1673462738184,0.07768933,1337.8,1337.7,30.09784334]
[1673462739935,0.07768933,1337.8,1337.7,31.19945268]
[1673462740130,0.07768933,1337.8,1337.7,30.09784334]
[1673462740338,0.07768933,1337.8,1337.7,30.09017755]
[1673462740553,1.34068933,1337.8,1337.7,6.19822033]
[1673462740762,1.34068933,1337.8,1337.7,28.62475033]
[1673462741009,1.34068933,1337.8,1337.7,24.82708969]
[1673462741447,1.59466606,1337.8,1337.7,0.05856455]
[1673462741607,1.59466606,1337.8,1337.7,14.95102]
[1673462741807,1.59466606,1337.8,1337.7,15.00958455]
[1673462742291,0.33166606,1337.8,1337.7,22.48509455]
[1673462742826,1.70766606,1337.8,1337.7,15.00958455]
[1673462742998,2.82588838,1337.8,1337.7,15.00958455]
[1673462743179,0.33166606,1337.8,1337.7,15.00958455]
[1673462743385,0.33166606,1337.8,1337.7,22.48509455]
[1673462743841,2.97066606,1337.8,1337.7,22.48509455]
[1673462744014,2.97066606,1337.8,1337.7,7.53407455]
[1673462744434,4.08888838,1337.8,1337.7,7.53407455]
[1673462744691,2.97066606,1337.8,1337.7,7.53407455]
[1673462744874,4.08888838,1337.8,1337.7,7.53407455]
[1673462745094,4.08888838,1337.8,1337.7,15.00958455]
[1673462745702,5.94341304,1337.8,1337.7,15.00958455]
[1673462745913,6.00941304,1337.8,1337.7,15.00958455]
[1673462746899,6.00941304,1337.8,1337.7,0.05856455]
[1673462747063,22.63531304,1337.8,1337.6,0.05856455]
[1673462747268,2.2635313,1337.7,1337.5,17.53518455]
[1673462747846,2.2635313,1337.7,1337.5,10.05856455]
[1673462748059,12.7393313,1337.7,1337.5,10.05856455]
[1673462748277,1.682,1337.6,1337.5,10.05856455]
[1673462748429,3.364,1337.6,1337.5,10.05856455]